Cogmind - Beta 14 @@@ ROGUE MODE // 2024.10.02 @ 06:32:30 Player: KURIIRI Result: Destroyed by G-34 Mercenary with Small Laser Performance ------------- Evolutions (0) 0 Regions Visited (1) 200 Robots Destroyed (11) 55 Value Destroyed (302) 302 Prototype IDs (0) 0 Alien Tech Used (0) 0 Bonus (0) 0 TOTAL SCORE: 557 Bonus ------- None Cogmind --------- Core Integrity 0/250 Matter 300/300 Energy 100/100 System Corruption 0% Temperature Cool (6) Movement Core (350) Ox6 Location -10/Materials Parts ------- > --- POWER (1) -------- (None) > --- PROPULSION (2) --- (None) > --- UTILITY (2) ------ Large Storage Unit > --- WEAPON (2) ------- (None) > --- INVENTORY (15) --- Light Treads Aluminum Leg Aluminum Leg Seismic Detector Seismic Detector Datajack Welding Torch Peak State ------------ > --- POWER ------------ Ion Engine > --- PROPULSION ------- Aluminum Leg Aluminum Leg > --- UTILITY ---------- Small Storage Unit Seismic Detector > --- WEAPON ----------- Medium Laser Medium Laser > --- INVENTORY -------- Large Storage Unit Seismic Detector [Rating: 7] Favorites ----------- Power Ion Engine Engine Ion Engine Propulsion Light Treads Treads Light Treads Leg Aluminum Leg Utility Small Storage Unit Device Seismic Detector Storage Small Storage Unit Protection Light Armor Plating Weapon Medium Laser Energy Gun Medium Laser Build | -11 -10 ------- Run | Yrd Mat Slots Evolved . | . . Power . | . . Propulsion . | . . Utility . | . . Weapon . | . . Parts Attached 13 | 6 7 Power 1 | 1 . Engine 1 | 1 . Core . | . . Reactor . | . . Propulsion 4 | 2 2 Treads 2 | . 2 Leg 2 | 2 . Wheel . | . . Hover . | . . Flight . | . . Utility 6 | 1 5 Device 2 | . 2 Storage 2 | 1 1 Processor . | . . Hackware . | . . Protection 2 | . 2 Artifact . | . . Weapon 2 | 2 . Energy Gun 2 | 2 . Energy Cannon . | . . Ballistic Gun . | . . Ballistic Cannon . | . . Launcher . | . . Special Weapon . | . . Impact Weapon . | . . Slashing Weapon . | . . Piercing Weapon . | . . Special Melee Weapon . | . . Unidentified Prototypes . | . . Parts Lost 8 | . 8 Power 1 | . 1 Propulsion 3 | . 3 Utility 2 | . 2 Weapon 2 | . 2 Highest Loss Streak 6 | . 6 To Critical Strikes . | . . Average Slot Usage (%) 88 | . 88 Engine 9 | . 9 Treads 16 | . 16 Leg 9 | . 9 Device 4 | . 4 Storage 14 | . 14 Protection 6 | . 6 Energy Gun 25 | . 25 Peak Build Rating 7 | 6 7 Average Rating 6 | 3 6 On Entrance 3 | . 6 Naked Turns . | . . Heaviest Build 27 | 14 27 Greatest Support 40 | 20 40 Greatest Overweight (x) 1 | . 1 Average Overweight (x) . | . . Largest Inventory Capacity 15 | 8 15 Average Capacity 9 | 6 9 Most Carried 8 | . 8 Average Carried 5 | . 5 Final Capacity 15 | 8 15 Final Carried 7 | . 7 Class Distribution -------------------- 100% | Mutant Dominant Class ---------------- Mutant | -10/Materials Resources | -11 -10 ----------- Run | Yrd Mat Matter Collected 363 | 177 186 Remotely . | . . Salvage Created 339 | . 339 Parts 13 | . 13 Haulers Intercepted 1 | . 1 Recyclers Shooed . | . . Parts Field Recycled . | . . Retrieved Matter . | . . Parts Self-Destructed . | . . Prevented . | . . Kills | -11 -10 ------- Run | Yrd Mat Combat Hostiles Destroyed 9 | . 9 Melee 2 | . 2 Guns 6 | . 6 Classes Destroyed 4 | . 4 Hauler 1 | . 1 Watcher 1 | . 1 Swarmer 2 | . 2 Grunt 7 | . 7 Best Kill Streak 3 | . 3 Combat Bots Only 2 | . 2 Max Kills in Single Turn 2 | . 2 Gunslinging . | . . Exploded . | . . Melee 1 | . 1 Uniques/NPCs Destroyed . | . . Combat | -11 -10 -------- Run | Yrd Mat Hostile Shots Fired 121 | . 121 Missed 20 | . 20 Damage Taken 1176 | . 1176 Core 260 | . 260 Absorbed by Shields . | . . Core Remaining (%) 100 | 100 . Volleys Fired 56 | . 56 Largest 2 | . 2 Hottest 100 | . 100 Shots Fired 98 | . 98 Gun 98 | . 98 Cannon . | . . Launcher . | . . Special . | . . Kinetic . | . . Thermal 98 | . 98 Explosive . | . . Electromagnetic . | . . Robot Hit Streak 7 | . 7 Robot Miss Streak 3 | . 3 Penetration Max . | . . Secondary Targets 1 | . 1 Max Gunslinging Chain 1 | . 1 Shots Hit Robots 63 | . 63 Core Hits 20 | . 20 Critical Kills . | . . Critical Parts Destroyed . | . . Critical Strikes 3 | . 3 Burn 3 | . 3 Melee Attacks . | . . Impact . | . . Slashing . | . . Piercing . | . . Sneak Attacks . | . . Combat Hostiles . | . . Follow-up Attacks . | . . Damage Inflicted 871 | . 871 Guns 813 | . 813 Cannons . | . . Explosions . | . . Melee . | . . Ramming 58 | . 58 Kinetic . | . . Thermal 813 | . 813 Explosive . | . . Electromagnetic . | . . Impact . | . . Slashing . | . . Piercing . | . . Highest Corruption . | . . Average Corruption . | . . Corruption Purged . | . . Corruption Blocked . | . . Overload Shots . | . . Overflow Damage . | . . Projectiles . | . . Explosions . | . . Melee . | . . Knockbacks . | . . Impact . | . . Kinetic . | . . Secondary . | . . Self-Inflicted Damage . | . . Shots . | . . Rammed 26 | . 26 Targets Rammed 28 | . 28 Kicked . | . . Crushed 2 | . 2 Highest Temperature 361 | . 361 Average Temperature 154 | . 154 Received Heat Transfer 666 | . 666 Effects 6 | . 6 Shutdowns 1 | . 1 Interference 3 | . 3 Matter Decay 1 | . 1 Damage (minor) 1 | . 1 Siege Activations . | . . Robots Corrupted . | . . Combat Hostiles . | . . Parts Fried . | . . Impact Corruptions . | . . Robots Melted 1 | . 1 Combat Hostiles 1 | . 1 Parts Melted 4 | . 4 Heat Transferred 2590 | . 2590 Parts Sabotaged . | . . Parts Stolen . | . . Parts Stripped . | . . Power Chain Reactions . | . . Alert | -11 -10 ------- Run | Yrd Mat Peak Influence 168 | . 168 Initial . | . . Average 75 | . 79 Maximum Alert Level . | . . Low Security (%) 100 | 100 100 Level 1 . | . . Level 2 . | . . Level 3 . | . . Level 4 . | . . Level 5 . | . . High Security . | . . Max Security . | . . Squads Dispatched 3 | . 3 Investigation 1 | . 1 Extermination . | . . Reinforcement 2 | . 2 Assault . | . . Garrison . | . . Intercept . | . . Searches Triggered . | . . Construction Impeded . | . . Haulers Reinforced . | . . Active Scanning Responses . | . . Cargo Convoy Interrupts . | . . Stealth | -11 -10 --------- Run | Yrd Mat Distress Signals 2 | . 2 Communications Jammed . | . . Distress Signals . | . . Times Spotted 16 | . 16 Peak Tracking Total 4 | . 4 Tactical Retreats 1 | . 1 Traps | -11 -10 ------- Run | Yrd Mat Traps Triggered . | . . Indirectly . | . . Trap Hack Attempts . | . . Triggered . | . . Disarmed . | . . Reprogrammed . | . . Reused . | . . Traps Extracted . | . . Installed . | . . Triggered . | . . Machines | -11 -10 ---------- Run | Yrd Mat Machines Disabled . | . . Max in Single Turn . | . . Machines Repaired . | . . Machines Dismantled . | . . Machines Sabotaged . | . . Overloaded Fab Kills . | . . Hacking | -11 -10 --------- Run | Yrd Mat Machines Accessed 1 | . 1 Terminals 1 | . 1 Fabricators . | . . Repair Stations . | . . Recycling Units . | . . Scanalyzers . | . . Garrison Access . | . . Total Hacks 4 | . 4 Successful 3 | . 3 Failed 1 | . 1 Catastrophic . | . . Database Lockouts . | . . Manual 4 | . 4 Terminals 4 | . 4 Fabricators . | . . Repair Stations . | . . Recycling Units . | . . Scanalyzers . | . . Garrison Access . | . . Terminal Hacks 2 | . 2 Robot Analysis 1 | . 1 Terminal Index 1 | . 1 Fabricator Hacks . | . . Repair Station Hacks . | . . Recycling Unit Hacks . | . . Scanalyzer . | . . Garrison Access Hacks . | . . Unauthorized Hacks 1 | . 1 Terminals 1 | . 1 Botnet 1 | . 1 Fabricators . | . . Repair Stations . | . . Recycling Units . | . . Scanalyzers . | . . Garrison Access . | . . Data Cores Recovered . | . . Used . | . . Hacking Detections 1 | . 1 Full Trace Events 1 | . 1 Feedback Events . | . . Feedback Blocked . | . . Robot Schematics Acquired . | . . Robots Built . | . . Authchips . | . . Time . | . . Total Robot Build Rating . | . . Part Schematics Acquired . | . . Parts Built . | . . Authchips . | . . Time . | . . Total Part Build Rating . | . . Parts Repaired . | . . Time . | . . Parts Recycled . | . . Recycled Matter . | . . Retrieved Matter . | . . Retrieved Components . | . . Parts Scanalyzed . | . . Part Schematics Acquired . | . . Parts Damaged . | . . Bothacking | -11 -10 ------------ Run | Yrd Mat Used RIF Installer . | . . Robots Hacked . | . . Non-combat . | . . Combat . | . . Robot Hacks Applied . | . . Relay Couplers Released . | . . Fabnet Peak Effective % . | . . Robots Rewired . | . . Allies Hacked . | . . Hacks Repelled . | . . Allies | -11 -10 -------- Run | Yrd Mat Total Allies . | . . Largest Group . | . . Highest-Rated Group . | . . Highest-Rated Ally . | . . Total Orders . | . . Ally Attacks . | . . Total Damage . | . . Kills . | . . Allies Corrupted . | . . Allies Melted . | . . Intel | -11 -10 ------- Run | Yrd Mat Robot Analysis Total 1 | . 1 Derelict Logs Recovered . | . . Drone Launches . | . . Drone Recoveries . | . . Exploration | -11 -10 ------------- Run | Yrd Mat Turns Passed 811 | 47 764 Spaces Moved 363 | 35 328 Core 5 | 5 . Treads 194 | . 194 Legs 164 | 30 134 Wheels . | . . Hover . | . . Flight . | . . Fastest Speed 50 | 50 120 Average Speed 143 | 110 147 Slowest Speed 190 | 120 190 Overloaded Moves . | . . Propulsion Burnouts . | . . Robots Hopped . | . . Cave-ins Triggered . | . . Exploration Rate (%) 36 | 4 69 Regions Visited 1 Branch Regions . Pre-discovered Areas . | . . Known Exits Taken . | . . Unknown Exits Taken 1 | 1 . Scrap Searched . | . . Spaces Dug . | . . Terrain Destroyed . | . . Melee . | . . Projectile . | . . AOE . | . . Terrain Rammed . | . . Walls Destroyed . | . . Machines Disabled . | . . Actions | -11 -10 --------- Run | Yrd Mat Total 532 | 40 492 Wait 59 | . 59 Move 362 | 34 328 Hop . | . . Pick Up 11 | . 11 Fast Attach 8 | 6 2 Attach 1 | . 1 Detach . | . . Swap 4 | . 4 Drop 3 | . 3 Fire 56 | . 56 Melee . | . . Ram 1 | . 1 Kick . | . . Crush 27 | . 27 Escape Stasis . | . . Rewire . | . . Trap . | . . Miscellaneous . | . . Route ------- -11/Scrapyard -10/Materials (discovered 4 exits: [*Mat x3] / [*Min]) History --------- Turn | Location | Event 29 | -11/Scrapyard | Discovered new exit (range 14) 48 | -11/Scrapyard | Entered Materials 251 | -10/Materials | Discovered new exit (range 3) 315 | -10/Materials | Build established: Mutant 440 | -10/Materials | Discovered new exit (range 9) 621 | -10/Materials | Discovered new exit (range 9) 662 | -10/Materials | Discovered new exit (range 7) 745 | -10/Materials | Core integrity fell below 50% 799 | -10/Materials | Core integrity fell below 20% 812 | -10/Materials | Destroyed by G-34 Mercenary with Small Laser Last Messages --------------- 00769_ K-01 Serf collects debris. 00772_ Med. Laser destroyed. 00772_ Slammed into G-34 Mercenary. 00775_ K-01 Serf collects debris. 00776_ Slammed into G-34 Mercenary. 00779_ K-01 Serf collects debris. 00780_ Slammed into G-34 Mercenary. 00782_ K-01 Serf collects debris. 00784_ Slammed into G-34 Mercenary. 00784_ Lgt. Armor Plating destroyed. 00785_ Crushed G-34 Mercenary. 00785_ G-34 Mercenary destroyed. 00790_ Slammed into G-34 Mercenary. 00791_ K-01 Serf collects debris. 00792_ Slammed into G-34 Mercenary. 00794_ K-01 Serf collects debris. 00794_ Lgt. Treads destroyed. 00795_ Slammed into G-34 Mercenary. 00808_ Lgt. Treads destroyed. 00809_ Slammed into G-34 Mercenary. Map ----- +----------------------------------------------------+ | ### #########????????????????????????# ??####### | | ????????????????????# ?? | | ????????????????????# ?# """ | | ????????????????????# ?# """ | | ################# ????????????????????# ## """ | | ?????????????????????????##########?#### #? | | ?????????????????????????# ###! ## """ | | ?????????????????????????# ##! ##! """ | | ?????????????????????????# ##! ## ""? | | ?????????????????????????# ##! + ? | | ?????????????????????????# #?! #####+## | | ?????????????????????????# #??! | | ????????????????? ???????# ###### | | ????????????????? ????#### + ! %% | | ????????????????# / ###### | | ????????????????? ????########+############## | | ????????????????? ?????# #? #??## | | ????????????????? ?????### # #???# | | ????????????????? #??????# # #???# # | | ????????????????# #??????# + """ #???# # | | ????????????????# #??????# # """"" #???# # | | ????????????????# #??????# < # """"" ????# | | ????????????????# #??????# #?"""""????# | | ????????????????# #??????# ######? """?????# | | ????????????????# ########+####???? ?????# < | | ??????????#######%# %%%%@ #????###?????# | | ???????#### =# %%"""g""" #????????????#"" " | | ??+ %%#%% """ """ #????????????##"!!!" | | ????????###+####%%+%! """ """ #?????????????##"""# | | ???????????????# %# #??????????????##### | | ??????????????## %#############??????????????????? | | ??????????????# %% #?????????????????????????????? | | ????????????? + ??????????????????????? | | ???????????? # T T ??????????????????? | | ??????????? ?# ##### #????????????????????? | | ?????????? ??######??????###????????????????????? | | ????????? ??????????????????????????????????????? | | ????????##???????????????????????????????????????? | | | | | | | | | | | | | | | | | | | | | | | | | +----------------------------------------------------+ Best States ------------- Heat Dissipation 35 Energy Generation 10 Energy Capacity 250 Matter Stores 300 Matter Capacity 300 Sight Range 16 Terrain Scan Density 10 Armor Coverage 150 Evasion (%) 55 Recoil Reduction 2 Item Schematics ----------------- None Robot Schematics ------------------ None Fabricated ------------ Nothing Alien Tech Used ----------------- None Achievements -------------- None Challenges ------------ None Game ------ Seed VortexSigixMachine Manual? 0 Play Time 00:06:59 Cumulative 103.8 hours Start 2024.10.02 @ 06:26:50 End 2024.10.02 @ 06:32:30 Sessions 1 Manual Loads 0 Difficulty Rogue Special Mode None Game No. 64 Rogue 28 Adventurer 36 Explorer 0 Win Type - Total 2 Types 2/0/0/0/0/0/0/0/0 Lore% 51 Gallery% 55 Achievement% 50 Wizard Run 0 Options --------- Layout 1 ASCII 0 Keyboard 0 Movement Numpad Keybinds 0 Fullscreen 1 Font 48/Smallcaps Map View 50x35 Zoom Use 0% Tactical HUD 1 Map Filters NONE Filters NONE Steam 1 RUN: fb88c3a6-9243-49b4-84d3-e717bdd832ce